[Event "World Junior Chess Championship U20 2022"]
[White "Neelash, Saha"]
[Black "Guz, Ari"]
[WhiteFideId "5094160"]
[BlackFideId "2825759"]
[WhiteElo "2446"]
[BlackElo "2305"]
[Result "1/2-1/2"]
[Round "03"]
[TimeControl "5400+30"]
[Date "2022.10.13"]
[WhiteClock "0:30:55"]
[BlackClock "0:26:00"]

1. Nf3 {[%clk 1:30:54]}  Nf6 {[%clk 1:27:35]} 2. c4 {[%clk 1:31:19]}  e6 {[%clk 1:27:40]} 3. Nc3 {[%clk 1:31:19]}  d5 {[%clk 1:27:40]} 4. e3 {[%clk 1:31:44]}  c5 {[%clk 1:22:40]} 5. b3 {[%clk 1:31:36]}  d4 {[%clk 1:21:21]} 6. Ne2 {[%clk 1:29:28]}  Nc6 {[%clk 1:20:53]} 7. a3 {[%clk 1:28:24]}  e5 {[%clk 1:18:56]} 8. d3 {[%clk 1:28:38]}  Bd6 {[%clk 1:15:22]} 9. Ng3 {[%clk 1:28:30]}  O-O {[%clk 1:11:45]} 10. Be2 {[%clk 1:28:54]}  dxe3 {[%clk 1:04:00]} 11. fxe3 {[%clk 1:26:44]}  e4 {[%clk 0:58:14]} 12. Nxe4 {[%clk 1:27:08]}  Nxe4 {[%clk 0:58:29]} 13. dxe4 {[%clk 1:27:33]}  Qf6 {[%clk 0:54:19]} 14. Ra2 {[%clk 1:27:54]}  Re8 {[%clk 0:51:29]} 15. Rd2 {[%clk 1:24:17]}  Bc7 {[%clk 0:51:26]} 16. O-O {[%clk 1:24:34]}  Qh6 {[%clk 0:50:03]} 17. Rd5 {[%clk 1:23:46]}  Be6 {[%clk 0:49:14]} 18. Rxc5 {[%clk 1:22:37]}  Rad8 {[%clk 0:44:08]} 19. Qe1 {[%clk 1:22:04]}  Bb6 {[%clk 0:43:39]} 20. Rb5 {[%clk 1:21:01]}  Bxe3+ {[%clk 0:43:27]} 21. Bxe3 {[%clk 1:21:01]}  Qxe3+ {[%clk 0:43:45]} 22. Qf2 {[%clk 1:21:22]}  Qxf2+ {[%clk 0:41:12]} 23. Kxf2 {[%clk 1:21:35]}  Bc8 {[%clk 0:40:42]} 24. e5 {[%clk 1:17:44]}  a6 {[%clk 0:39:19]} 25. Rc5 {[%clk 1:14:53]}  Bg4 {[%clk 0:38:45]} 26. Re1 {[%clk 1:15:11]}  Bxf3 {[%clk 0:32:52]} 27. Bxf3 {[%clk 1:15:33]}  Rd2+ {[%clk 0:32:55]} 28. Kg1 {[%clk 1:13:42]}  Ra2 {[%clk 0:30:20]} 29. Bxc6 {[%clk 1:12:05]}  bxc6 {[%clk 0:30:42]} 30. Rxc6 {[%clk 1:11:44]}  Rxa3 {[%clk 0:30:50]} 31. Rb6 {[%clk 1:12:08]}  h5 {[%clk 0:30:34]} 32. c5 {[%clk 1:12:01]}  Ra2 {[%clk 0:29:57]} 33. c6 {[%clk 1:12:16]}  Rc2 {[%clk 0:29:43]} 34. Rxa6 {[%clk 1:10:05]}  Rd8 {[%clk 0:28:48]} 35. Kh1 {[%clk 1:03:05]}  Rb8 {[%clk 0:24:56]} 36. h3 {[%clk 1:03:05]}  Rxb3 {[%clk 0:25:17]} 37. Ra8+ {[%clk 0:33:06]}  Kh7 {[%clk 0:25:38]} 38. Ra7 {[%clk 0:33:04]}  Rg3 {[%clk 0:24:28]} 39. Rg1 {[%clk 0:30:18]}  Rxc6 {[%clk 0:24:41]} 40. Rxf7 {[%clk 0:30:34]}  Re6 {[%clk 0:24:50]} 41. Rf5 {[%clk 0:30:12]}  Kg6 {[%clk 0:25:10]} 42. Rf3 {[%clk 0:29:30]}  Rg5 {[%clk 0:25:20]} 43. Ra1 {[%clk 0:29:13]}  Rexe5 {[%clk 0:25:04]} 44. Kh2 {[%clk 0:29:03]}  Re2 {[%clk 0:24:46]} 45. Rg3 {[%clk 0:29:26]}  Rxg3 {[%clk 0:25:07]} 46. Kxg3 {[%clk 0:29:51]}  Re4 {[%clk 0:25:25]} 47. Ra6+ {[%clk 0:30:09]}  Kh7 {[%clk 0:25:35]} 48. h4 {[%clk 0:30:30]}  Rg4+ {[%clk 0:25:41]} 49. Kh3 {[%clk 0:30:55]}  Rb4 {[%clk 0:26:00]} 1/2-1/2


[Site "http://www.chessbomb.com"]

[Event "World Junior Chess Championship U20 2022"]
[White "Gurel, Ediz"]
[Black "Wartiovaara, Oliver"]
[WhiteFideId "44507356"]
[BlackFideId "513024"]
[WhiteElo "2445"]
[BlackElo "2297"]
[Result "1-0"]
[Round "03"]
[TimeControl "5400+30"]
[Date "2022.10.13"]
[WhiteClock "0:51:17"]
[BlackClock "0:27:45"]

1. e4 {[%clk 1:29:53]}  c5 {[%clk 1:30:44]} 2. Nf3 {[%clk 1:30:15]}  d6 {[%clk 1:31:10]} 3. d4 {[%clk 1:30:41]}  cxd4 {[%clk 1:31:36]} 4. Nxd4 {[%clk 1:31:07]}  Nf6 {[%clk 1:32:02]} 5. Nc3 {[%clk 1:31:33]}  a6 {[%clk 1:32:29]} 6. Bg5 {[%clk 1:31:58]}  e6 {[%clk 1:32:55]} 7. Qf3 {[%clk 1:32:24]}  Be7 {[%clk 1:30:36]} 8. O-O-O {[%clk 1:32:50]}  Nbd7 {[%clk 1:30:01]} 9. g4 {[%clk 1:33:08]}  h6 {[%clk 1:23:36]} 10. Bd2 {[%clk 1:33:21]}  Qc7 {[%clk 1:18:30]} 11. h4 {[%clk 1:32:23]}  Ne5 {[%clk 1:14:48]} 12. Qg2 {[%clk 1:31:35]}  Nexg4 {[%clk 1:13:19]} 13. Be2 {[%clk 1:13:02]}  h5 {[%clk 1:08:25]} 14. Rhg1 {[%clk 1:05:13]}  g6 {[%clk 1:00:27]} 15. f3 {[%clk 1:02:22]}  Ne5 {[%clk 1:00:50]} 16. Bg5 {[%clk 0:55:42]}  Bd7 {[%clk 0:55:51]} 17. f4 {[%clk 0:49:08]}  Nc6 {[%clk 0:43:35]} 18. Qf2 {[%clk 0:38:46]}  Ng4 {[%clk 0:32:23]} 19. Bxg4 {[%clk 0:38:46]}  hxg4 {[%clk 0:32:36]} 20. f5 {[%clk 0:33:46]}  Bxg5+ {[%clk 0:31:33]} 21. hxg5 {[%clk 0:34:07]}  O-O-O {[%clk 0:30:26]} 22. Nxc6 {[%clk 0:29:47]}  bxc6 {[%clk 0:28:41]} 23. fxg6 {[%clk 0:26:28]}  fxg6 {[%clk 0:29:05]} 24. Rxg4 {[%clk 0:26:54]}  e5 {[%clk 0:27:49]} 25. Rg3 {[%clk 0:26:57]}  Rh3 {[%clk 0:25:38]} 26. Rxh3 {[%clk 0:25:14]}  Bxh3 {[%clk 0:26:02]} 27. Qf6 {[%clk 0:25:22]}  Bg4 {[%clk 0:25:52]} 28. Rd3 {[%clk 0:25:22]}  Bh5 {[%clk 0:25:44]} 29. Nd5 {[%clk 0:21:50]}  cxd5 {[%clk 0:25:51]} 30. Rc3 {[%clk 0:22:19]}  Qxc3 {[%clk 0:26:13]} 31. bxc3 {[%clk 0:22:26]}  dxe4 {[%clk 0:26:38]} 32. Qe6+ {[%clk 0:22:53]}  Kc7 {[%clk 0:24:17]} 33. Qc4+ {[%clk 0:23:18]}  Kb6 {[%clk 0:18:32]} 34. Qxe4 {[%clk 0:23:39]}  Rc8 {[%clk 0:17:25]} 35. Qb4+ {[%clk 0:24:02]}  Kc7 {[%clk 0:17:49]} 36. c4 {[%clk 0:23:31]}  Re8 {[%clk 0:14:17]} 37. Qa4 {[%clk 0:23:00]}  Re7 {[%clk 0:14:17]} 38. Qxa6 {[%clk 0:22:22]}  e4 {[%clk 0:14:34]} 39. Qa7+ {[%clk 0:22:49]}  Kd8 {[%clk 0:14:59]} 40. Qe3 {[%clk 0:23:16]}  Re5 {[%clk 0:10:54]} 41. Kd2 {[%clk 0:23:07]}  Kc8 {[%clk 0:08:15]} 42. a4 {[%clk 0:22:47]}  Kb7 {[%clk 0:02:59]} 43. Kc3 {[%clk 0:23:02]}  Bg4 {[%clk 0:29:38]} 44. a5 {[%clk 0:51:22]}  Bc8 {[%clk 0:29:25]} 45. Qb6+ {[%clk 0:50:09]}  Ka8 {[%clk 0:29:50]} 46. Qd8 {[%clk 0:50:16]}  Rc5 {[%clk 0:29:10]} 47. Kd4 {[%clk 0:50:41]}  Rc6 {[%clk 0:28:01]} 48. Qe8 {[%clk 0:50:57]}  Kb7 {[%clk 0:27:45]} 49. Qxg6 {[%clk 0:51:17]} 1-0


[Site "http://www.chessbomb.com"]

[Event "World Junior Chess Championship U20 2022"]
[White "Flores Quillas, Diego Saul Rodri"]
[Black "Kozak, Antoni"]
[WhiteFideId "3822508"]
[BlackFideId "21832030"]
[WhiteElo "2291"]
[BlackElo "2440"]
[Result "0-1"]
[Round "03"]
[TimeControl "5400+30"]
[Date "2022.10.13"]
[WhiteClock "0:14:05"]
[BlackClock "1:05:56"]

1. e4 {[%clk 1:26:53]}  c5 {[%clk 1:30:56]} 2. Nf3 {[%clk 1:27:03]}  d6 {[%clk 1:31:22]} 3. d4 {[%clk 1:27:29]}  cxd4 {[%clk 1:31:49]} 4. Nxd4 {[%clk 1:27:55]}  Nf6 {[%clk 1:32:17]} 5. Nc3 {[%clk 1:28:20]}  a6 {[%clk 1:32:45]} 6. h3 {[%clk 1:28:46]}  e5 {[%clk 1:33:09]} 7. Nde2 {[%clk 1:29:13]}  h5 {[%clk 1:33:35]} 8. Bg5 {[%clk 1:29:38]}  Be6 {[%clk 1:34:02]} 9. Bxf6 {[%clk 1:29:07]}  Qxf6 {[%clk 1:34:28]} 10. Nd5 {[%clk 1:29:35]}  Qd8 {[%clk 1:34:54]} 11. Qd3 {[%clk 1:29:59]}  g6 {[%clk 1:35:12]} 12. O-O-O {[%clk 1:30:14]}  Nd7 {[%clk 1:35:39]} 13. Kb1 {[%clk 1:29:53]}  Nc5 {[%clk 1:35:48]} 14. Qf3 {[%clk 1:29:50]}  Bh6 {[%clk 1:35:54]} 15. Nec3 {[%clk 1:25:06]}  O-O {[%clk 1:33:39]} 16. Qe2 {[%clk 1:25:29]}  b5 {[%clk 1:30:51]} 17. g3 {[%clk 1:24:10]}  Rb8 {[%clk 1:27:35]} 18. a3 {[%clk 1:24:08]}  Bd7 {[%clk 1:23:41]} 19. f4 {[%clk 1:12:42]}  exf4 {[%clk 1:19:32]} 20. gxf4 {[%clk 1:12:47]}  a5 {[%clk 1:19:57]} 21. b4 {[%clk 1:08:17]}  axb4 {[%clk 1:18:17]} 22. axb4 {[%clk 1:08:40]}  Ra8 {[%clk 1:10:18]} 23. Bg2 {[%clk 1:05:38]}  Na4 {[%clk 1:10:11]} 24. Nxa4 {[%clk 0:59:04]}  Rxa4 {[%clk 1:10:36]} 25. c3 {[%clk 0:59:30]}  Qa8 {[%clk 1:06:16]} 26. Qb2 {[%clk 0:52:29]}  Qa7 {[%clk 1:06:17]} 27. Nf6+ {[%clk 0:14:23]}  Kh8 {[%clk 1:06:30]} 28. Nxd7 {[%clk 0:14:20]}  Ra8 {[%clk 1:06:33]} 29. e5 {[%clk 0:13:58]}  Ra1+ {[%clk 1:05:50]} 30. Kc2 {[%clk 0:13:45]}  Ra2 {[%clk 1:05:29]} 31. Bxa8 {[%clk 0:14:05]}  Qf2+ {[%clk 1:05:56]} 0-1


[Site "http://www.chessbomb.com"]

[Event "World Junior Chess Championship U20 2022"]
[White "Harshavardhan, G B"]
[Black "Dauw, Sterre"]
[WhiteFideId "25059009"]
[BlackFideId "248886"]
[WhiteElo "2433"]
[BlackElo "2287"]
[Result "1/2-1/2"]
[Round "03"]
[TimeControl "5400+30"]
[Date "2022.10.13"]
[WhiteClock "0:04:59"]
[BlackClock "0:14:00"]

1. d4 {[%clk 1:30:47]}  Nf6 {[%clk 1:30:56]} 2. c4 {[%clk 1:31:01]}  e6 {[%clk 1:31:21]} 3. Nc3 {[%clk 1:31:12]}  Bb4 {[%clk 1:31:46]} 4. Qc2 {[%clk 1:30:10]}  d5 {[%clk 1:32:11]} 5. cxd5 {[%clk 1:30:24]}  exd5 {[%clk 1:32:35]} 6. Bg5 {[%clk 1:30:23]}  h6 {[%clk 1:32:35]} 7. Bxf6 {[%clk 1:30:23]}  Qxf6 {[%clk 1:33:21]} 8. a3 {[%clk 1:31:00]}  Bxc3+ {[%clk 1:32:03]} 9. Qxc3 {[%clk 1:31:21]}  c6 {[%clk 1:30:07]} 10. e3 {[%clk 1:31:42]}  O-O {[%clk 1:30:20]} 11. Nf3 {[%clk 1:31:16]}  Re8 {[%clk 1:29:50]} 12. Be2 {[%clk 1:30:43]}  Bg4 {[%clk 1:29:53]} 13. O-O {[%clk 1:29:44]}  Nd7 {[%clk 1:29:41]} 14. Rfe1 {[%clk 1:27:43]}  a5 {[%clk 1:27:14]} 15. b4 {[%clk 1:27:27]}  axb4 {[%clk 1:26:52]} 16. axb4 {[%clk 1:27:38]}  Qd6 {[%clk 1:27:00]} 17. h3 {[%clk 1:24:39]}  Bh5 {[%clk 1:26:54]} 18. Ra5 {[%clk 1:15:54]}  Rxa5 {[%clk 1:16:25]} 19. bxa5 {[%clk 1:16:13]}  Ra8 {[%clk 1:16:52]} 20. Rb1 {[%clk 1:15:37]}  Qc7 {[%clk 1:15:29]} 21. Qb4 {[%clk 1:13:46]}  Rxa5 {[%clk 1:10:57]} 22. Qxb7 {[%clk 1:13:08]}  Ra7 {[%clk 1:11:00]} 23. Qb3 {[%clk 1:12:46]}  Qd6 {[%clk 1:05:58]} 24. Rc1 {[%clk 1:12:25]}  g5 {[%clk 1:05:21]} 25. Qc2 {[%clk 1:03:25]}  Rc7 {[%clk 1:05:36]} 26. Qa2 {[%clk 1:03:03]}  c5 {[%clk 1:03:48]} 27. dxc5 {[%clk 1:03:00]}  Rxc5 {[%clk 1:03:56]} 28. Rd1 {[%clk 1:01:57]}  Bg6 {[%clk 1:02:52]} 29. Nd4 {[%clk 1:01:40]}  Ne5 {[%clk 0:57:34]} 30. Qa8+ {[%clk 0:58:47]}  Kg7 {[%clk 0:57:16]} 31. Qa1 {[%clk 0:58:22]}  Kg8 {[%clk 0:54:10]} 32. Qa8+ {[%clk 0:54:15]}  Kg7 {[%clk 0:54:32]} 33. Qa7 {[%clk 0:54:33]}  Qc7 {[%clk 0:44:11]} 34. Qa3 {[%clk 0:54:20]}  Nd7 {[%clk 0:39:40]} 35. Bg4 {[%clk 0:52:57]}  Rc4 {[%clk 0:37:50]} 36. Qb2 {[%clk 0:38:09]}  Nf6 {[%clk 0:37:24]} 37. Rf1 {[%clk 0:35:50]}  Qc5 {[%clk 0:36:28]} 38. Qa1 {[%clk 0:22:20]}  Qe7 {[%clk 0:31:51]} 39. Rd1 {[%clk 0:20:29]}  Qc7 {[%clk 0:28:13]} 40. Ne2 {[%clk 0:18:25]}  Qc6 {[%clk 0:26:18]} 41. Ng3 {[%clk 0:16:37]}  Qa4 {[%clk 0:26:15]} 42. Nf5+ {[%clk 0:15:19]}  Bxf5 {[%clk 0:26:39]} 43. Qxa4 {[%clk 0:15:39]}  Rxa4 {[%clk 0:27:05]} 44. Bxf5 {[%clk 0:15:57]}  Rb4 {[%clk 0:26:41]} 45. g3 {[%clk 0:15:36]}  h5 {[%clk 0:26:32]} 46. Kg2 {[%clk 0:15:27]}  Ra4 {[%clk 0:26:25]} 47. Rd2 {[%clk 0:14:56]}  Rb4 {[%clk 0:26:28]} 48. Ra2 {[%clk 0:14:21]}  Rc4 {[%clk 0:25:55]} 49. Kf1 {[%clk 0:12:19]}  Rb4 {[%clk 0:22:49]} 50. Bd3 {[%clk 0:11:09]}  Rb6 {[%clk 0:20:12]} 51. Ke2 {[%clk 0:07:58]}  Ne4 {[%clk 0:19:38]} 52. Rc2 {[%clk 0:07:54]}  Rf6 {[%clk 0:19:07]} 53. Ke1 {[%clk 0:07:53]}  Kh6 {[%clk 0:18:46]} 54. g4 {[%clk 0:05:15]}  h4 {[%clk 0:18:12]} 55. Bf1 {[%clk 0:05:08]}  Rb6 {[%clk 0:14:48]} 56. Bg2 {[%clk 0:05:04]}  Kg6 {[%clk 0:14:35]} 57. f3 {[%clk 0:04:05]}  Rb1+ {[%clk 0:13:09]} 58. Ke2 {[%clk 0:04:24]}  Rg1 {[%clk 0:13:07]} 59. Kd3 {[%clk 0:04:38]}  Rd1+ {[%clk 0:13:34]} 60. Ke2 {[%clk 0:04:59]}  Rg1 {[%clk 0:14:00]} 1/2-1/2


[Site "http://www.chessbomb.com"]

[Event "World Junior Chess Championship U20 2022"]
[White "Moksh, Amit Doshi"]
[Black "Ansat, Aldiyar"]
[WhiteFideId "25064967"]
[BlackFideId "13715658"]
[WhiteElo "2430"]
[BlackElo "2262"]
[Result "1/2-1/2"]
[Round "03"]
[TimeControl "5400+30"]
[Date "2022.10.13"]
[WhiteClock "0:26:21"]
[BlackClock "0:05:10"]

1. d4 {[%clk 1:27:37]}  Nf6 {[%clk 1:30:53]} 2. c4 {[%clk 1:27:53]}  g6 {[%clk 1:31:17]} 3. Nc3 {[%clk 1:28:17]}  d5 {[%clk 1:31:36]} 4. cxd5 {[%clk 1:28:39]}  Nxd5 {[%clk 1:32:02]} 5. e4 {[%clk 1:28:57]}  Nxc3 {[%clk 1:32:26]} 6. bxc3 {[%clk 1:29:21]}  Bg7 {[%clk 1:32:53]} 7. Nf3 {[%clk 1:29:21]}  c5 {[%clk 1:33:18]} 8. Rb1 {[%clk 1:30:02]}  O-O {[%clk 1:29:56]} 9. Be2 {[%clk 1:30:24]}  Qc7 {[%clk 1:12:47]} 10. O-O {[%clk 1:27:08]}  Rd8 {[%clk 1:09:22]} 11. h3 {[%clk 1:22:57]}  b6 {[%clk 1:05:46]} 12. Qb3 {[%clk 1:19:47]}  e6 {[%clk 0:50:50]} 13. Bg5 {[%clk 1:18:23]}  Re8 {[%clk 0:50:55]} 14. Rfe1 {[%clk 1:13:41]}  Nc6 {[%clk 0:49:20]} 15. d5 {[%clk 1:08:48]}  exd5 {[%clk 0:48:45]} 16. exd5 {[%clk 1:09:11]}  Na5 {[%clk 0:49:07]} 17. Qc2 {[%clk 1:09:22]}  Bf5 {[%clk 0:34:48]} 18. Bd3 {[%clk 1:09:43]}  Bxd3 {[%clk 0:35:13]} 19. Qxd3 {[%clk 1:10:04]}  Nb7 {[%clk 0:35:16]} 20. c4 {[%clk 1:10:18]}  Qd7 {[%clk 0:32:45]} 21. Nd2 {[%clk 1:05:28]}  Nd6 {[%clk 0:32:16]} 22. Bf4 {[%clk 1:04:06]}  Rad8 {[%clk 0:30:31]} 23. g4 {[%clk 1:00:45]}  Rxe1+ {[%clk 0:28:43]} 24. Rxe1 {[%clk 1:01:08]}  b5 {[%clk 0:23:29]} 25. cxb5 {[%clk 0:56:47]}  Qxb5 {[%clk 0:23:16]} 26. Qg3 {[%clk 0:49:54]}  Qb4 {[%clk 0:18:14]} 27. Rb1 {[%clk 0:40:58]}  Qd4 {[%clk 0:17:16]} 28. Bxd6 {[%clk 0:37:55]}  Qxd2 {[%clk 0:17:40]} 29. Be7 {[%clk 0:38:05]}  Re8 {[%clk 0:17:25]} 30. d6 {[%clk 0:36:39]}  Bf8 {[%clk 0:17:00]} 31. Qf3 {[%clk 0:30:19]}  Bxe7 {[%clk 0:09:52]} 32. Qc6 {[%clk 0:30:41]}  Kf8 {[%clk 0:10:18]} 33. dxe7+ {[%clk 0:31:04]}  Kxe7 {[%clk 0:10:43]} 34. Qxc5+ {[%clk 0:29:39]}  Kf6 {[%clk 0:08:50]} 35. Qxa7 {[%clk 0:30:01]}  Kg7 {[%clk 0:05:11]} 36. Rf1 {[%clk 0:25:48]}  Qd3 {[%clk 0:03:56]} 37. Qa4 {[%clk 0:25:15]}  Qxh3 {[%clk 0:03:49]} 38. Qxe8 {[%clk 0:25:38]}  Qxg4+ {[%clk 0:04:15]} 39. Kh2 {[%clk 0:26:00]}  Qh4+ {[%clk 0:04:42]} 40. Kg2 {[%clk 0:26:21]}  Qg4+ {[%clk 0:05:10]} 1/2-1/2


[Site "http://www.chessbomb.com"]

[Event "World Junior Chess Championship U20 2022"]
[White "Droin, Augustin"]
[Black "Oye-Stromberg, Alexander"]
[WhiteFideId "45105987"]
[BlackFideId "1525999"]
[WhiteElo "2416"]
[BlackElo "2233"]
[Result "1-0"]
[Round "03"]
[TimeControl "5400+30"]
[Date "2022.10.13"]
[WhiteClock "0:40:55"]
[BlackClock "0:01:01"]

1. e4 {[%clk 1:27:43]}  e5 {[%clk 1:30:31]} 2. Nf3 {[%clk 1:28:08]}  Nc6 {[%clk 1:30:38]} 3. Bb5 {[%clk 1:28:22]}  a6 {[%clk 1:30:28]} 4. Ba4 {[%clk 1:28:39]}  Nf6 {[%clk 1:30:51]} 5. d3 {[%clk 1:28:43]}  b5 {[%clk 1:30:50]} 6. Bb3 {[%clk 1:29:10]}  Be7 {[%clk 1:29:24]} 7. a4 {[%clk 1:27:49]}  b4 {[%clk 1:24:35]} 8. O-O {[%clk 1:27:23]}  d6 {[%clk 1:24:29]} 9. a5 {[%clk 1:26:28]}  O-O {[%clk 1:23:45]} 10. h3 {[%clk 1:23:10]}  Rb8 {[%clk 1:19:13]} 11. Nbd2 {[%clk 1:21:56]}  h6 {[%clk 1:17:55]} 12. c3 {[%clk 1:16:33]}  Be6 {[%clk 1:08:16]} 13. Bxe6 {[%clk 1:11:22]}  fxe6 {[%clk 1:08:39]} 14. d4 {[%clk 1:11:07]}  exd4 {[%clk 1:08:01]} 15. cxd4 {[%clk 1:10:06]}  Rb5 {[%clk 1:06:01]} 16. Nb3 {[%clk 1:09:51]}  d5 {[%clk 0:56:49]} 17. e5 {[%clk 1:10:01]}  Ne4 {[%clk 0:57:01]} 18. Ne1 {[%clk 1:02:52]}  Rf5 {[%clk 0:27:42]} 19. Nd3 {[%clk 1:02:10]}  Nb8 {[%clk 0:25:44]} 20. Qg4 {[%clk 0:58:25]}  Bg5 {[%clk 0:16:17]} 21. Nbc5 {[%clk 0:51:18]}  Nxc5 {[%clk 0:15:17]} 22. Nxc5 {[%clk 0:51:41]}  Rxc5 {[%clk 0:13:56]} 23. dxc5 {[%clk 0:52:04]}  Nc6 {[%clk 0:13:57]} 24. Qe2 {[%clk 0:48:51]}  Bxc1 {[%clk 0:12:32]} 25. Qxa6 {[%clk 0:47:06]}  Nd4 {[%clk 0:05:24]} 26. Raxc1 {[%clk 0:47:18]}  Qg5 {[%clk 0:05:06]} 27. Kh1 {[%clk 0:39:56]}  Rxf2 {[%clk 0:03:29]} 28. Rxf2 {[%clk 0:40:23]}  Qxc1+ {[%clk 0:03:52]} 29. Qf1 {[%clk 0:40:49]}  Qxc5 {[%clk 0:03:39]} 30. a6 {[%clk 0:40:56]}  Nf5 {[%clk 0:02:50]} 31. Rf3 {[%clk 0:39:48]}  d4 {[%clk 0:01:01]} 32. Qa1 {[%clk 0:39:59]}  Qa7 {[%clk 0:00:53]} 33. Qa2 {[%clk 0:40:15]}  b3 {[%clk 0:01:18]} 34. Qxb3 {[%clk 0:40:31]}  Qxa6 {[%clk 0:01:01]} 35. Rxf5 {[%clk 0:40:55]} 1-0


[Site "http://www.chessbomb.com"]

[Event "World Junior Chess Championship U20 2022"]
[White "Siddharth, Jagadeesh"]
[Black "Winkelman, Albert"]
[WhiteFideId "5818320"]
[BlackFideId "3219941"]
[WhiteElo "2415"]
[BlackElo "2229"]
[Result "0-1"]
[Round "03"]
[TimeControl "5400+30"]
[Date "2022.10.13"]
[WhiteClock "0:01:56"]
[BlackClock "0:03:00"]

1. d4 {[%clk 1:28:38]}  Nf6 {[%clk 1:30:15]} 2. c4 {[%clk 1:28:57]}  g6 {[%clk 1:30:23]} 3. Nc3 {[%clk 1:28:28]}  d5 {[%clk 1:30:47]} 4. cxd5 {[%clk 1:28:51]}  Nxd5 {[%clk 1:31:08]} 5. Bd2 {[%clk 1:29:16]}  Bg7 {[%clk 1:31:19]} 6. e4 {[%clk 1:29:37]}  Nb6 {[%clk 1:31:32]} 7. Be3 {[%clk 1:29:58]}  O-O {[%clk 1:31:29]} 8. a4 {[%clk 1:30:05]}  a5 {[%clk 1:31:13]} 9. h3 {[%clk 1:30:28]}  c6 {[%clk 1:28:35]} 10. Nf3 {[%clk 1:26:30]}  Qd6 {[%clk 1:26:42]} 11. Be2 {[%clk 1:23:52]}  Be6 {[%clk 1:26:54]} 12. O-O {[%clk 1:21:56]}  Qb4 {[%clk 1:21:05]} 13. Qc2 {[%clk 1:11:39]}  Bb3 {[%clk 1:17:25]} 14. Qc1 {[%clk 1:11:36]}  Rd8 {[%clk 1:17:26]} 15. e5 {[%clk 1:06:10]}  Nc4 {[%clk 1:09:36]} 16. Bf4 {[%clk 1:02:06]}  Nd7 {[%clk 1:04:28]} 17. h4 {[%clk 0:52:37]}  Nf8 {[%clk 1:01:51]} 18. Bxc4 {[%clk 0:31:13]}  Bxc4 {[%clk 1:02:06]} 19. Rd1 {[%clk 0:31:33]}  Bb3 {[%clk 1:00:35]} 20. Rd2 {[%clk 0:31:18]}  Ne6 {[%clk 1:00:55]} 21. Be3 {[%clk 0:31:39]}  h5 {[%clk 0:46:37]} 22. Qe1 {[%clk 0:27:11]}  b6 {[%clk 0:24:04]} 23. Qe2 {[%clk 0:21:52]}  Ra7 {[%clk 0:23:35]} 24. g3 {[%clk 0:16:55]}  Rad7 {[%clk 0:22:12]} 25. Kg2 {[%clk 0:14:37]}  c5 {[%clk 0:12:16]} 26. dxc5 {[%clk 0:13:56]}  Bc4 {[%clk 0:11:27]} 27. Qe1 {[%clk 0:12:08]}  bxc5 {[%clk 0:10:11]} 28. Kg1 {[%clk 0:03:37]}  Rxd2 {[%clk 0:06:32]} 29. Bxd2 {[%clk 0:04:06]}  Qxb2 {[%clk 0:05:49]} 30. Ne4 {[%clk 0:04:35]}  Bd5 {[%clk 0:02:51]} 31. Bxa5 {[%clk 0:02:59]}  Bxe4 {[%clk 0:02:22]} 32. Bxd8 {[%clk 0:03:24]}  Bxf3 {[%clk 0:02:42]} 33. Rb1 {[%clk 0:03:46]}  Qa2 {[%clk 0:02:38]} 34. Bxe7 {[%clk 0:02:18]}  Bc6 {[%clk 0:02:45]} 35. Qd1 {[%clk 0:01:15]}  Nd4 {[%clk 0:02:39]} 36. Rb8+ {[%clk 0:01:56]}  Kh7 {[%clk 0:03:02]} 37. Rd8 {[%clk 0:01:56]}  Qe6 {[%clk 0:03:00]} 0-1


[Site "http://www.chessbomb.com"]

[Event "World Junior Chess Championship U20 2022"]
[White "Veiga, Jose Francisco R P Neves"]
[Black "Andreev, Konstantin"]
[WhiteFideId "1930087"]
[BlackFideId "24239305"]
[WhiteElo "2409"]
[BlackElo "2206"]
[Result "1-0"]
[Round "03"]
[TimeControl "5400+30"]
[Date "2022.10.13"]
[WhiteClock "0:20:35"]
[BlackClock "0:10:03"]

1. e4 {[%clk 1:29:46]}  c5 {[%clk 1:30:45]} 2. Nf3 {[%clk 1:29:59]}  Nc6 {[%clk 1:31:03]} 3. Nc3 {[%clk 1:29:59]}  e6 {[%clk 1:31:09]} 4. d4 {[%clk 1:29:59]}  cxd4 {[%clk 1:31:31]} 5. Nxd4 {[%clk 1:30:23]}  Nf6 {[%clk 1:31:38]} 6. Ndb5 {[%clk 1:24:33]}  d6 {[%clk 1:31:24]} 7. Bf4 {[%clk 1:24:43]}  e5 {[%clk 1:31:35]} 8. Bg5 {[%clk 1:24:43]}  a6 {[%clk 1:31:58]} 9. Na3 {[%clk 1:25:23]}  b5 {[%clk 1:31:54]} 10. Nd5 {[%clk 1:25:40]}  Be7 {[%clk 1:32:15]} 11. Bxf6 {[%clk 1:26:01]}  Bxf6 {[%clk 1:32:39]} 12. c4 {[%clk 1:25:51]}  b4 {[%clk 1:32:26]} 13. Nc2 {[%clk 1:26:16]}  a5 {[%clk 1:32:36]} 14. b3 {[%clk 1:25:33]}  O-O {[%clk 1:31:55]} 15. h4 {[%clk 1:25:30]}  g6 {[%clk 1:31:58]} 16. h5 {[%clk 1:24:29]}  Bg5 {[%clk 1:32:07]} 17. Bd3 {[%clk 1:22:39]}  Be6 {[%clk 1:30:20]} 18. g3 {[%clk 1:21:28]}  Ra7 {[%clk 1:24:53]} 19. Kf1 {[%clk 1:15:14]}  Qb8 {[%clk 1:11:31]} 20. f4 {[%clk 1:06:42]}  exf4 {[%clk 1:10:47]} 21. gxf4 {[%clk 1:07:03]}  Bd8 {[%clk 1:10:31]} 22. Qf3 {[%clk 1:01:09]}  a4 {[%clk 0:42:49]} 23. Kg2 {[%clk 1:01:01]}  Qa8 {[%clk 0:33:20]} 24. Qe3 {[%clk 0:54:37]}  Qb7 {[%clk 0:30:43]} 25. Rag1 {[%clk 0:45:40]}  axb3 {[%clk 0:20:41]} 26. axb3 {[%clk 0:46:09]}  Ra2 {[%clk 0:16:02]} 27. Kh2 {[%clk 0:38:37]}  Bxd5 {[%clk 0:13:43]} 28. exd5 {[%clk 0:36:11]}  Ne7 {[%clk 0:13:01]} 29. Rg2 {[%clk 0:28:10]}  Bb6 {[%clk 0:11:44]} 30. Qh3 {[%clk 0:27:04]}  Kh8 {[%clk 0:10:59]} 31. Qh4 {[%clk 0:25:35]}  Ng8 {[%clk 0:10:47]} 32. hxg6 {[%clk 0:22:34]}  fxg6 {[%clk 0:11:11]} 33. Rxg6 {[%clk 0:20:30]}  Qe7 {[%clk 0:10:03]} 34. Rxg8+ {[%clk 0:20:35]} 1-0


[Site "http://www.chessbomb.com"]